bitfinex/quotes_ETHUSD_20240707
["timestamp","ask_amount","ask_price","bid_price","bid_amount"]
[1720362595928,1.7115168,2974.8,2974.7,3.348754]
[1720362596099,2.7692437,2974.8,2974.7,3.348754]
[1720362596299,3.17857884,2974.8,2974.7,2.35317]
[1720362596594,2.76975747,2974.8,2974.7,2.35317]
[1720362596817,3.17856024,2974.8,2974.7,2.35317]
[1720362597026,1.7115168,2974.8,2974.7,2.35317]
[1720362597221,3.17857797,2974.8,2974.7,2.35317]
[1720362598013,2.77034894,2974.8,2974.7,3.123816]
[1720362598242,2.77034894,2974.8,2974.7,5.476986]
[1720362599338,4.2373576,2974.8,2974.7,5.476986]
[1720362599729,2.77034894,2974.8,2974.7,3.123816]
[1720362600324,2.77034894,2974.8,2974.7,5.476986]
[1720362600530,2.41750007,2974.8,2974.7,5.476986]
[1720362600724,1.7115168,2974.8,2974.7,3.123816]
[1720362600914,2.41748562,2974.8,2974.7,5.476986]
[1720362601118,2.77034894,2974.8,2974.7,0.770646]
[1720362601445,2.77034894,2974.8,2974.7,3.123816]
[1720362601817,1.7115168,2974.8,2974.7,3.123816]
[1720362602349,1.7115168,2974.8,2974.7,5.54421408]
[1720362602515,0.70590512,2974.9,2974.8,4.70618]
[1720362602715,0.70590512,2975.2,2975.1,2.35286]
[1720362603064,1.52017434,2975.5,2974.8,9.8343956]
[1720362603065,0.1098718,2975.5,2974.8,9.8343956]
[1720362603239,1.05863378,2975.3,2975.2,2.35278]
[1720362603548,1.05863378,2975.4,2975.3,2.3527]
[1720362604313,1.52138351,2975.5,2975.1,3.0]
[1720362604543,1.52138351,2975.5,2975.0,2.35292]
[1720362604544,1.05764955,2975.3,2975.0,5.35292]
[1720362604731,0.70507799,2975.2,2975.1,0.770591]
[1720362604926,1.05764955,2975.3,2975.1,3.770591]
[1720362605125,0.70494421,2975.2,2975.1,3.770591]
[1720362605339,0.7048699,2975.2,2975.1,6.123451]
[1720362605555,0.7048699,2975.3,2975.1,6.123451]
[1720362606051,0.7048699,2975.3,2975.2,2.35278]
[1720362606255,0.7048699,2975.3,2975.2,5.35278]
[1720362606418,0.7048699,2975.4,2975.3,2.3527]
[1720362607470,0.8147417,2975.5,2975.4,2.35262]
[1720362607656,0.8147417,2975.5,2975.4,3.123152]
[1720362607863,0.8147417,2975.5,2975.4,2.35262]
[1720362608059,0.8147417,2975.5,2975.2,3.0]
[1720362608368,0.7048699,2975.3,2975.0,5.35289]
[1720362608676,0.7048699,2975.3,2975.1,5.3528]
[1720362608876,0.7048699,2975.3,2975.1,2.3528]
[1720362609171,0.7048699,2975.3,2975.2,2.823349]
[1720362609347,0.7048699,2975.4,2975.2,5.823349]
[1720362609549,0.8147417,2975.5,2975.4,2.35262]
[1720362609750,0.1098718,2975.5,2975.4,2.35262]
[1720362609954,0.1098718,2975.5,2975.4,8.22955025]
[1720362610338,0.1098718,2975.5,2975.4,10.55015025]
[1720362611051,0.1098718,2975.5,2975.4,10.71615025]
[1720362615597,0.1098718,2975.5,2975.4,8.39555025]
[1720362616085,0.1098718,2975.5,2975.4,6.04293025]
[1720362616291,0.1098718,2975.5,2975.4,8.39555025]
[1720362616889,0.1098718,2975.5,2975.4,6.04293025]
[1720362617355,0.1098718,2975.5,2975.4,8.39555025]
[1720362618974,0.1098718,2975.5,2975.4,10.81325025]
[1720362619558,0.1098718,2975.5,2975.4,13.16587025]
[1720362619910,0.1098718,2975.5,2975.4,13.71587025]
[1720362623881,0.1098718,2975.5,2975.4,10.81325025]
[1720362624620,0.1098718,2975.5,2975.4,6.04293025]
[1720362624823,0.1098718,2975.5,2975.4,3.166]
[1720362625021,0.1098718,2975.5,2975.4,0.166]
[1720362626585,2.5609718,2975.5,2975.4,0.166]
[1720362627820,0.1098718,2975.5,2975.4,0.166]
[1720362628033,0.1098718,2975.5,2975.4,2.51862]
[1720362628232,0.1098718,2975.5,2975.4,2.770482]
[1720362629009,0.1098718,2975.5,2975.4,5.770482]
[1720362629292,0.1098718,2975.5,2975.4,8.123102]
[1720362629691,0.1098718,2975.5,2975.4,10.515102]
[1720362629886,0.1098718,2975.5,2975.4,13.417722]
[1720362631594,0.1098718,2975.5,2975.4,11.065102]
[1720362632001,0.1098718,2975.5,2975.4,10.515102]
[1720362632431,0.1098718,2975.5,2975.4,12.867722]
[1720362632601,0.1098718,2975.5,2975.4,13.417722]
[1720362632802,0.1098718,2975.5,2975.4,10.515102]
[1720362633004,0.1098718,2975.5,2975.4,8.123102]
[1720362634298,0.1098718,2975.5,2975.4,11.025722]
[1720362634698,0.26301219,2976.5,2976.1,2.35204]
[1720362634905,0.7026771,2976.7,2976.1,2.35204]
[1720362635233,0.7026771,2976.6,2976.1,2.822464]
[1720362635417,0.7026771,2976.7,2976.1,2.822464]
[1720362635802,0.7026771,2976.7,2976.1,2.35204]
[1720362636018,0.7026771,2976.6,2975.9,4.70437]
[1720362636218,0.7026771,2976.5,2975.7,5.35233]
[1720362636418,0.7026771,2976.4,2975.8,2.35224]
[1720362636632,0.7026771,2976.4,2975.8,5.822697]
[1720362637050,0.7026771,2976.4,2975.9,2.35222]
[1720362637231,0.7026771,2976.4,2975.9,5.35222]
[1720362637397,0.7026771,2976.5,2975.9,5.35217]
[1720362637915,0.7026771,2976.5,2976.0,2.35214]
[1720362638097,0.7026771,2976.5,2976.0,3.1696157]
[1720362638301,0.7026771,2976.5,2976.1,2.35205]
[1720362638515,0.7026771,2976.6,2976.1,2.35205]
[1720362638935,0.7026771,2976.5,2976.1,2.35205]
[1720362639629,0.7026771,2976.6,2976.1,2.35205]
[1720362639930,0.7026771,2976.5,2976.1,2.35205]
[1720362640123,0.7026771,2976.5,2976.1,3.20421857]
[1720362640652,0.7026771,2976.6,2976.1,3.20421857]
[1720362640848,0.7026771,2976.6,2976.1,5.55623857]
[1720362641135,0.7026771,2976.6,2976.3,2.35189]
[1720362641303,0.7026771,2976.7,2976.3,2.35189]
[1720362641505,0.7026771,2976.7,2976.3,2.90749786]
[1720362642330,0.7026771,2976.8,2976.3,2.90749786]
[1720362642555,0.7026771,2976.7,2976.3,2.90749786]
[1720362642842,0.7026771,2976.7,2976.3,5.25934786]
[1720362644147,0.7026771,2976.7,2976.4,2.35181]
[1720362644441,0.7026771,2976.8,2976.5,0.52592679]
[1720362644640,0.7026771,2976.8,2976.5,3.0]
[1720362644847,0.7026771,2976.7,2976.5,3.0]
[1720362645022,0.7026771,2976.7,2976.2,3.0]
[1720362645811,0.7026771,2976.7,2976.3,2.3519]
[1720362646013,0.7026771,2976.7,2976.4,0.53519]
[1720362646253,0.70311997,2976.8,2976.4,3.53519]
[1720362647372,0.70311997,2976.8,2976.5,2.418874]
[1720362647578,0.70311997,2977.0,2976.7,2.35159]
[1720362648073,0.70311997,2977.0,2976.6,2.35166]
[1720362648275,0.70311997,2976.9,2976.6,2.35166]
[1720362649073,0.70311997,2976.9,2976.5,5.35168]
[1720362649074,0.70311997,2976.9,2976.7,2.35159]
[1720362649434,0.70311997,2977.0,2976.7,2.35159]
[1720362649635,0.70311997,2977.0,2976.7,3.121917]
[1720362649834,0.70325531,2977.0,2976.7,3.121917]
[1720362650776,0.70325531,2977.1,2976.7,3.121917]
[1720362651738,0.70325531,2977.1,2976.7,5.473457]
[1720362651937,0.70325531,2977.1,2976.8,0.5473457]
[1720362652549,0.70325531,2977.2,2976.8,0.5473457]
[1720362652748,0.70325531,2977.1,2976.8,0.5473457]
[1720362652948,0.70325531,2977.2,2976.9,2.35142]
[1720362653162,0.70325531,2977.2,2976.9,7.70279]
[1720362653347,0.70325531,2977.3,2977.0,0.82501357]
[1720362654448,0.70325531,2977.3,2976.9,5.35137]
[1720362654666,0.70280803,2977.3,2976.6,5.35167]
[1720362654862,0.70280803,2977.0,2976.6,2.35167]
[1720362655698,0.70280803,2976.9,2976.5,3.0]
[1720362655895,0.70280803,2976.8,2976.4,3.0]
[1720362656072,0.70280803,2976.8,2976.3,2.35189]
[1720362656274,0.70280803,2976.8,2976.3,5.474144]
[1720362656478,0.70280803,2976.8,2976.4,3.0]
[1720362656691,0.70280803,2976.8,2976.6,2.35167]
[1720362656910,0.70280803,2976.9,2976.6,2.35167]
[1720362657404,1.05421205,2977.1,2976.6,4.7033]
[1720362657405,0.70280803,2977.0,2976.6,4.7033]
[1720362657694,0.70280803,2977.1,2976.6,3.12196]
[1720362657898,0.70280803,2977.0,2976.6,3.12196]
[1720362658608,5.3909,2977.6,2976.7,2.35159]
[1720362658782,0.70264501,2977.2,2976.7,2.35159]
[1720362658977,2.56878657,2977.5,2976.7,3.138485]
[1720362658978,1.16349654,2977.5,2976.7,3.138485]
[1720362659298,0.70277682,2977.1,2976.7,2.35159]
[1720362659867,0.70277682,2977.1,2976.7,4.70313]
[1720362660073,0.70277682,2977.2,2976.8,3.0]
[1720362660572,0.70277682,2977.1,2976.6,5.35164]
[1720362660772,0.70277682,2977.1,2976.6,6.349675]
[1720362661104,0.70277682,2977.1,2976.3,0.770394]
[1720362661306,0.70277682,2976.8,2976.2,4.74738]
[1720362661603,0.70277682,2976.8,2976.3,3.0]
[1720362661983,0.70277682,2976.8,2976.1,2.35206]
[1720362662301,0.70277682,2976.7,2976.1,5.35206]
[1720362662513,0.70277682,2976.6,2975.7,2.35236]
[1720362662685,0.70277682,2976.4,2975.5,2.35249]
[1720362663008,0.70277682,2976.2,2975.7,2.35234]
[1720362663174,0.70277682,2976.3,2975.7,4.70467]
[1720362663376,0.70277682,2976.3,2975.8,0.470467]
[1720362663570,0.70277682,2976.3,2975.5,2.35251]
[1720362663771,0.70277682,2976.2,2975.5,5.35251]
[1720362663971,0.70277682,2976.1,2975.5,5.35251]
[1720362664384,0.70277682,2976.1,2975.5,5.35249]
[1720362664773,0.70277682,2976.2,2975.6,2.35246]
[1720362664974,0.70277682,2976.1,2975.6,3.0]
[1720362665211,0.70277682,2975.9,2975.5,3.0]
[1720362665412,0.70277682,2975.9,2975.4,0.166]
[1720362665589,0.70277682,2975.8,2975.4,0.166]
[1720362666728,0.70277682,2975.9,2975.4,0.417876]
[1720362666969,0.70277682,2976.2,2975.9,2.4366]
[1720362667073,0.70277682,2976.2,2976.1,2.35207]
[1720362667303,0.70277682,2976.6,2976.2,2.35196]
[1720362667544,0.70277682,2976.7,2976.4,2.35182]
[1720362667828,0.70277682,2976.8,2976.4,2.35182]
[1720362668027,0.70277682,2976.8,2976.3,2.587046]
[1720362668172,0.70277682,2976.9,2976.4,2.8456656]
[1720362668373,0.70277682,2977.0,2976.6,2.35165]
[1720362669228,0.26301219,2977.1,2976.9,2.35138]
[1720362669528,1.16349654,2977.5,2977.3,2.35112]
[1720362669829,1.16349654,2977.5,2977.3,2.586232]
[1720362670032,1.16349654,2977.5,2977.3,2.35112]
[1720362670193,1.16349654,2977.5,2977.2,3.0]
[1720362670371,1.16349654,2977.5,2977.4,2.35104]
[1720362670576,1.16349654,2977.5,2977.4,5.35104]
[1720362670890,1.16349654,2977.5,2977.4,3.0]
[1720362671096,1.16349654,2977.5,2977.3,2.35111]
[1720362671293,1.16349654,2977.5,2977.4,2.35104]
[1720362671514,1.16349654,2977.5,2977.4,5.35104]
[1720362672082,1.16349654,2977.5,2977.4,3.0]
[1720362672312,1.16349654,2977.5,2977.3,2.35107]
[1720362672615,1.16349654,2977.5,2977.4,2.35104]
[1720362672783,1.16349654,2977.5,2977.4,6.121249]
[1720362672983,1.16349654,2977.5,2977.4,3.0]
[1720362673312,1.86627336,2977.5,2976.8,2.35146]
[1720362673813,1.16349654,2977.5,2976.8,2.35146]
[1720362674002,1.16349654,2977.5,2977.0,2.35133]
[1720362674203,1.86627336,2977.5,2976.6,2.35161]
[1720362674515,0.70277682,2977.4,2976.6,4.70321]
[1720362674717,0.70277682,2977.3,2976.7,3.0]
[1720362675013,0.70277682,2977.3,2976.5,5.35175]
[1720362675014,0.70277682,2977.2,2976.5,5.35175]
[1720362675215,0.70277682,2977.2,2976.6,2.35167]
[1720362675786,0.70277682,2977.2,2976.5,3.0]
[1720362676120,0.70277682,2977.2,2976.2,2.35197]
[1720362676319,0.70277682,2976.9,2976.2,2.35197]
[1720362676506,0.70277682,2976.9,2976.3,2.35191]
[1720362676686,0.70194222,2976.9,2976.3,2.35191]
[1720362677392,0.70194222,2976.9,2976.3,4.70377]
[1720362677721,0.70194222,2977.0,2976.4,3.470377]
[1720362678253,0.70194222,2977.0,2976.4,3.0]
[1720362679120,4.75485557,2977.4,2976.4,3.0]
[1720362679121,3.0,2977.4,2976.4,3.0]
[1720362679317,3.0,2977.4,2976.3,2.35185]
[1720362679318,0.70194352,2976.9,2976.3,2.35185]
[1720362679518,0.70194352,2976.9,2976.3,6.9807]
[1720362679721,0.70194352,2977.0,2976.4,5.35182]
[1720362680019,0.70194352,2977.0,2976.4,6.114702]
[1720362680205,0.70194352,2977.0,2976.4,3.0]
[1720362680410,0.70194352,2976.8,2976.3,5.35189]
[1720362680620,0.70194352,2976.8,2976.4,3.0]
[1720362680821,0.70194352,2976.8,2976.3,2.35189]
[1720362681325,0.70194352,2976.9,2976.3,2.35189]
[1720362682436,1.05291528,2977.1,2976.5,2.35175]
[1720362682644,1.05291528,2977.2,2976.5,5.35175]
[1720362683938,1.05291528,2977.3,2976.8,2.35151]
[1720362684110,1.05291528,2977.4,2976.8,2.35151]
[1720362685335,1.05291528,2977.4,2976.9,2.35143]
[1720362685643,1.05261634,2977.5,2976.9,2.35143]
[1720362686942,1.05261634,2977.4,2976.9,2.35143]
[1720362687236,1.05261634,2977.5,2976.9,2.35143]
[1720362687443,1.05261634,2977.5,2976.9,2.868763]
[1720362688039,1.05261634,2977.5,2977.1,2.3512]
[1720362688210,1.05261634,2977.7,2977.1,2.3512]
[1720362688607,1.05261634,2977.6,2977.1,2.3512]
[1720362689540,1.05261634,2977.7,2977.1,2.3512]
[1720362689935,1.05261634,2977.6,2977.1,2.3512]
[1720362690258,1.05261634,2977.6,2977.0,3.0]
[1720362690410,1.05261634,2977.6,2977.0,5.35135]
[1720362691310,4.40348845,2977.8,2977.1,2.35127]
[1720362691311,1.05261634,2977.7,2977.1,2.35127]
[1720362692160,4.40348845,2977.8,2977.2,2.35113]
[1720362692161,2.45976074,2977.8,2977.2,2.35113]
[1720362692361,2.45976074,2977.8,2977.3,2.35105]
[1720362692362,0.70275417,2977.8,2977.3,2.35105]
[1720362692659,0.70275417,2977.8,2977.3,0.470218]
[1720362693137,0.70275417,2977.8,2977.3,2.821278]
[1720362693310,0.60275417,2977.8,2977.3,2.821278]
[1720362693506,0.44,2977.9,2977.3,2.821278]
[1720362693807,0.44,2977.9,2977.4,2.35103]
[1720362694004,0.44,2977.9,2977.5,0.2821248]
[1720362694256,0.44,2977.9,2977.5,3.2821248]
[1720362695227,0.44,2977.9,2977.6,2.35083]
[1720362695537,0.44,2977.9,2977.6,7.70165]
[1720362696105,0.44,2977.9,2977.6,5.35082]
[1720362696311,0.44,2977.9,2977.8,2.35072]
[1720362696511,0.44,2977.9,2977.8,5.35072]
[1720362698843,0.88,2977.9,2977.8,5.35072]
[1720362701163,0.88,2977.9,2977.8,10.13504]
[1720362702516,0.88,2977.9,2977.8,7.78432]
[1720362703376,0.88,2977.9,2977.8,8.85416145]
[1720362704340,0.44,2977.9,2977.8,8.85416145]
[1720362704665,0.44,2977.9,2977.8,11.20488145]
[1720362711164,0.44,2977.9,2977.8,13.55560145]
[1720362711352,0.1098718,2978.5,2978.4,7.1644]
[1720362711553,0.1098718,2978.5,2978.4,10.1644]
[1720362712089,0.1098718,2978.5,2978.4,5.35025]
[1720362712266,0.1098718,2978.5,2978.4,14.85878506]
[1720362712764,0.1098718,2978.5,2978.4,15.40878506]
[1720362712963,0.1098718,2978.5,2978.4,16.94966357]
[1720362713142,0.7008567,2979.7,2978.4,16.94966357]
[1720362713474,0.7008567,2980.1,2979.6,2.34923]
[1720362713770,0.7008567,2980.3,2979.7,2.34922]
[1720362713934,0.7008567,2980.4,2979.6,2.34923]
[1720362714440,3.0,2980.3,2979.5,3.0]
[1720362714636,2.3766,2980.1,2979.3,3.0]
[1720362714831,3.0,2980.0,2979.1,3.0]
[1720362715067,3.0,2980.0,2979.1,2.34969]
[1720362715279,3.0,2980.0,2979.1,5.34969]
[1720362715741,3.0,2980.0,2979.2,2.3496]
[1720362715970,0.53766,2979.9,2979.2,3.0]
[1720362716487,0.53766,2979.9,2979.0,2.34978]
[1720362716686,0.53766,2979.9,2979.0,5.34978]
[1720362716857,0.53766,2979.9,2979.0,2.34978]
[1720362717797,0.53766,2979.9,2979.0,2.34972]
[1720362717997,0.353766,2979.8,2978.8,2.34989]
[1720362718288,0.353766,2979.8,2978.8,4.69977]
[1720362718490,0.353766,2979.8,2978.9,5.34981]
[1720362718690,0.353766,2979.8,2979.0,2.34976]
[1720362718889,0.353766,2979.8,2978.9,3.0]
[1720362720397,0.353766,2979.8,2978.9,5.34984]
[1720362720578,0.353766,2979.8,2978.9,3.0]
[1720362720780,3.0,2979.7,2978.9,3.0]
[1720362720970,2.4287,2979.5,2978.9,3.0]
[1720362721174,0.3353766,2979.6,2978.8,2.51593]
[1720362721569,0.3353766,2979.6,2978.9,3.0]
[1720362723674,3.0,2979.7,2978.9,3.0]
[1720362723880,3.0,2979.7,2978.9,5.34984]
[1720362724177,2.4287,2979.8,2979.1,2.3497]
[1720362724906,1.9287,2979.8,2979.1,2.3497]
[1720362725114,1.9287,2979.8,2979.1,2.34964]
[1720362725448,3.70000289,2980.3,2979.3,2.34949]
[1720362725579,1.16253989,2980.2,2979.3,2.34949]
[1720362725775,1.16253989,2980.1,2979.3,4.69897]
[1720362726018,0.26301219,2980.4,2979.4,2.34944]
[1720362726212,1.16249661,2980.3,2979.4,5.34944]
[1720362726510,3.70000289,2980.6,2979.4,6.364652]
[1720362726713,1.16244349,2980.5,2979.6,2.34925]
[1720362726911,3.0,2980.6,2979.6,2.34925]
[1720362726912,1.16244349,2980.4,2979.6,2.34925]
[1720362727097,3.0,2980.6,2979.6,2.34925]
[1720362727305,1.16238019,2980.5,2979.7,2.3492]
[1720362727607,3.0,2980.6,2979.7,5.3492]
[1720362727776,0.3,2980.5,2979.7,5.3492]
[1720362728424,0.3,2980.5,2979.7,2.3492]
[1720362728987,0.3,2980.5,2979.5,5.34933]
[1720362729191,0.3,2980.5,2979.6,3.0]
[1720362729402,0.3,2980.5,2979.5,2.34933]
[1720362729604,0.33,2980.4,2979.5,2.34931]
[1720362730386,0.33,2980.4,2979.7,2.34922]
[1720362730694,3.0,2980.6,2979.6,3.0]
[1720362730899,3.0,2980.6,2979.5,2.34931]
[1720362731597,3.0,2980.6,2979.3,5.34952]
[1720362731798,1.16244018,2980.5,2979.4,2.34945]
[1720362731997,3.0,2980.6,2979.5,2.34938]
[1720362732230,3.0,2980.6,2979.7,2.34916]
[1720362732459,3.0,2980.6,2979.8,2.34914]
[1720362732603,2.4287,2980.7,2979.8,2.34914]
[1720362733036,3.0,2980.6,2979.6,5.34923]
[1720362733328,3.0,2980.6,2979.7,2.34918]
[1720362733515,0.54287,2980.5,2979.7,5.34918]
[1720362733718,0.54287,2980.5,2979.5,3.0]
[1720362733945,3.0,2980.3,2979.4,5.34943]
[1720362734231,3.0,2980.3,2979.5,3.0]
[1720362734410,3.0,2980.3,2979.3,3.0]
[1720362734611,3.0,2980.3,2979.3,5.34953]
[1720362734612,0.3,2980.2,2979.3,5.34953]
[1720362734811,3.0,2980.0,2979.3,3.0]
[1720362735034,3.0,2980.0,2979.0,7.69943]
[1720362735201,3.0,2980.0,2979.1,2.34969]
[1720362735544,3.0,2980.0,2979.1,5.34969]
[1720362735745,0.57287,2980.0,2979.2,2.34961]
[1720362735962,2.4287,2980.1,2979.3,2.34954]
[1720362736241,2.457,2980.4,2979.5,2.34933]
[1720362737396,4.16244203,2980.3,2979.4,3.0]
[1720362737602,3.0,2980.0,2979.2,3.0]
[1720362737914,3.0,2980.0,2979.0,3.0]
[1720362738114,3.0,2980.0,2979.1,4.6993]
[1720362738419,3.0,2980.0,2979.2,3.0]
[1720362738620,3.0,2979.7,2978.5,4.64994]
[1720362738839,1.16273405,2979.6,2978.5,2.2998]
[1720362739043,3.0,2979.4,2978.1,7.0007]
[1720362739210,1.16275238,2979.3,2978.3,2.35033]
[1720362739732,3.0,2979.1,2978.1,4.65024]
[1720362739938,0.3,2979.0,2978.1,2.2998]
[1720362740137,1.46290079,2979.0,2978.1,2.2998]
[1720362740335,0.3,2979.0,2978.1,4.65026]
[1720362740502,0.3,2979.0,2978.1,4.65021]
[1720362741038,0.3,2979.0,2978.1,2.2998]
[1720362741406,1.16297708,2978.9,2978.1,2.2998]
[1720362741605,4.11458739,2978.9,2977.6,2.4615]
[1720362741838,4.88538974,2978.9,2977.6,2.4615]
[1720362742017,4.88538974,2978.9,2977.4,2.35103]
[1720362742018,6.67635161,2978.9,2977.4,2.35103]
[1720362742213,8.42885278,2978.9,2977.4,2.35103]
[1720362742425,8.42885278,2978.9,2977.2,2.4615]
[1720362742426,11.97285278,2978.9,2977.2,2.4615]
[1720362742611,10.77049451,2978.9,2977.2,2.4615]
[1720362743544,10.77049451,2978.9,2977.2,4.81265]
[1720362743745,8.14193103,2978.9,2977.3,2.35111]
[1720362744038,12.52218407,2978.9,2977.3,2.35111]
[1720362744432,12.52218407,2978.9,2977.4,3.0]
[1720362744606,10.77084185,2978.9,2977.4,3.0]
[1720362745243,10.77084185,2978.9,2977.3,3.0]
[1720362745748,10.77084185,2978.9,2977.3,5.35112]
[1720362746243,12.52003996,2978.9,2977.5,2.35096]
[1720362746538,10.77066455,2978.9,2977.6,3.0]
[1720362746703,12.51986266,2978.9,2977.6,3.0]
[1720362746908,3.26193064,2978.9,2977.8,2.35071]
[1720362747177,1.79633103,2978.9,2977.8,2.35071]
[1720362747433,2.84617558,2978.9,2977.6,5.35088]
[1720362747617,5.82476999,2978.9,2977.6,3.0]
[1720362747819,6.17470689,2978.9,2977.5,5.35096]
[1720362748354,9.71870689,2978.9,2977.5,3.0]
[1720362748535,10.26870689,2978.9,2977.3,3.0]
[1720362749208,10.77062239,2978.9,2977.3,3.0]
[1720362749410,10.77062239,2978.9,2977.4,2.35099]
[1720362749411,12.52055238,2978.9,2977.4,2.35099]
[1720362749611,12.52055238,2978.9,2977.5,3.0]
[1720362750007,8.14193103,2978.9,2977.3,3.0]
[1720362750212,12.52116601,2978.9,2977.3,3.0]
[1720362750430,8.14193103,2978.9,2977.3,3.0]
[1720362750609,23.11847772,2978.9,2977.2,2.4615]
[1720362750810,3.0,2978.0,2977.2,2.4615]
[1720362751110,3.7001011,2978.0,2977.3,0.24615]
[1720362751439,3.0,2978.0,2977.2,2.4615]
[1720362752016,3.0,2978.0,2977.2,5.4615]
[1720362752240,3.0,2978.0,2977.2,3.0]
[1720362752408,3.0,2977.7,2976.7,5.4615]
[1720362752608,0.3,2977.6,2976.7,2.4615]
[1720362754161,3.0,2977.4,2976.7,2.4615]
[1720362755250,0.3,2977.6,2976.3,2.4892]
[1720362755251,3.0,2977.0,2976.3,2.4892]
[1720362756343,3.0,2977.0,2975.8,4.84146]
[1720362756652,0.3,2976.9,2975.9,2.35221]
[1720362757958,0.3,2976.9,2975.9,5.35221]
[1720362758157,0.26301219,2977.5,2976.6,2.277]
[1720362758392,3.0,2977.8,2976.9,2.35142]
[1720362758578,3.0,2977.9,2976.9,2.35138]
[1720362758778,3.32630122,2977.9,2976.9,3.370595]
[1720362759089,3.0,2977.6,2976.9,1.019215]
[1720362759303,3.0,2977.6,2976.8,3.0]
[1720362759460,3.0,2977.6,2976.3,4.84108]
[1720362759461,3.0,2977.0,2976.4,3.0]
[1720362759664,3.0,2977.0,2976.3,2.4892]
[1720362759984,3.0,2977.0,2976.2,3.0]
[1720362760193,3.3,2977.0,2976.1,2.35201]
[1720362761587,3.3,2977.0,2976.0,3.0]
[1720362761766,3.0,2977.4,2976.1,2.35205]
[1720362761968,3.0,2977.1,2976.2,2.35191]
[1720362762179,0.26301219,2977.5,2976.4,2.3244]
[1720362762385,0.26301219,2977.5,2976.7,2.35158]
[1720362762591,3.0,2977.5,2976.4,2.3244]
[1720362762795,3.0,2977.5,2976.4,5.443829]
[1720362763593,3.0,2977.5,2976.6,2.35162]
[1720362764795,3.61301219,2978.0,2976.6,0.06718733]
[1720362765101,0.26301219,2978.0,2977.0,4.70263]
[1720362765301,0.26301219,2978.0,2977.1,0.470263]
[1720362765500,0.26301219,2978.0,2977.1,2.821513]
[1720362766206,5.4993,2978.1,2977.1,2.821513]
[1720362766566,3.0,2978.4,2977.1,2.8618404]
[1720362766801,2.76231219,2978.5,2977.1,2.8618404]
[1720362766802,5.76231219,2978.5,2977.5,2.35096]
[1720362767370,3.26301219,2978.5,2977.6,2.35088]
[1720362768804,3.26301219,2978.5,2977.4,2.35098]
[1720362768983,3.58931341,2978.5,2977.5,0.235098]
[1720362769989,3.58931341,2978.5,2977.5,2.586018]
[1720362771192,1.16323482,2978.4,2977.5,0.235098]
[1720362771376,3.58931341,2978.5,2977.5,2.586008]
[1720362771886,1.16323067,2978.4,2977.5,2.586008]
[1720362772086,3.0,2978.5,2977.6,0.2586008]
[1720362772307,1.16322716,2978.4,2977.6,0.2586008]
[1720362772506,3.0,2978.5,2977.6,0.2586008]
[1720362773210,1.16319607,2978.4,2977.6,0.2586008]
[1720362773406,3.0,2978.5,2977.6,0.2586008]
[1720362773631,3.0,2978.2,2977.2,3.28618404]
[1720362773808,3.0,2978.2,2977.2,5.63737404]
[1720362774328,1.16335282,2978.1,2977.2,5.63737404]
[1720362774529,3.0,2978.2,2977.2,5.63737404]
[1720362774730,3.0,2978.2,2977.3,0.7961774]
[1720362776043,3.0,2978.2,2977.3,3.1472674]
[1720362776402,3.0,2978.2,2977.4,2.35103]
[1720362776808,3.0,2978.2,2977.3,0.7961774]
[1720362777719,3.0,2978.2,2977.3,3.1472274]
[1720362777919,3.0,2978.2,2977.4,0.87845514]
[1720362779138,3.0,2978.2,2977.4,3.22945514]
[1720362779723,3.0,2978.2,2977.5,2.35094]
[1720362780103,3.0,2978.2,2977.4,0.87845514]
[1720362780440,3.0,2978.2,2977.4,3.22948514]
[1720362780637,3.0,2978.2,2977.2,5.35117]
[1720362780941,3.0,2978.2,2977.3,2.35105]
[1720362781438,0.3,2978.5,2977.4,2.35102]
[1720362781735,3.0,2978.1,2977.4,2.35102]
[1720362782035,3.0,2978.1,2977.2,5.35113]
[1720362782942,3.0,2978.1,2977.2,3.0]
[1720362783311,3.0,2978.1,2977.1,5.3244]
[1720362784034,1.3135032,2978.0,2977.1,5.3244]
[1720362784238,1.3135032,2978.0,2977.1,6.091968]
[1720362784639,1.3135032,2978.0,2977.1,8.443218]
[1720362785147,1.3135032,2978.0,2976.8,2.35147]
[1720362785313,3.0,2977.8,2976.8,2.35147]
[1720362785512,1.3135032,2977.7,2976.8,5.35145]
[1720362787334,1.3135032,2977.7,2976.8,5.69764519]
[1720362788014,0.70161779,2977.6,2976.8,5.69764519]
[1720362788343,1.3135032,2977.5,2976.8,6.38344152]
[1720362790008,0.70161779,2977.6,2977.0,2.35134]
[1720362790239,1.31169588,2977.5,2976.9,2.273]
[1720362790442,1.31169588,2977.5,2976.9,3.0]
[1720362790767,4.86517297,2977.4,2976.4,2.35175]
[1720362790916,4.86517297,2977.4,2976.5,0.462235]
[1720362790917,2.01331367,2977.3,2976.5,0.462235]
[1720362791244,1.31169588,2977.2,2976.5,3.462235]
[1720362791429,1.31169588,2977.2,2976.5,0.462235]
[1720362792047,2.01331367,2977.2,2976.5,0.462235]
[1720362792246,0.70161779,2977.2,2976.6,0.61637477]
[1720362792449,0.70161779,2977.4,2976.7,2.35159]
[1720362792627,2.01338297,2977.3,2976.7,2.35159]
[1720362792827,0.70161779,2977.3,2976.7,2.35159]
[1720362793053,0.70161779,2977.3,2976.8,0.53196248]
[1720362793620,4.05242669,2977.4,2976.8,0.53196248]
[1720362793621,2.01284654,2977.2,2976.8,0.53196248]
[1720362793852,0.70161779,2977.2,2976.6,3.0]
[1720362794254,0.70161779,2977.1,2976.5,7.62474]
[1720362794451,0.70196695,2977.2,2976.5,7.62474]
[1720362794752,0.70196695,2977.1,2976.5,5.273]
[1720362794957,0.70196695,2977.1,2976.5,6.53268627]
[1720362795544,0.70196695,2977.1,2976.5,8.88442627]